bitfinex-derivatives/quotes_BTCF0:USTF0_20251229
["timestamp","ask_amount","ask_price","bid_price","bid_amount"]
[1767046161747,0.00011496,87239.0,87224.0,0.05739]
[1767046162141,0.00011496,87239.0,87224.0,0.05734]
[1767046163452,0.00011496,87239.0,87225.0,0.011478]
[1767046165652,0.17375053,87235.0,87213.0,0.03094021]
[1767046165950,0.17375053,87235.0,87200.0,0.17375053]
[1767046165951,0.0114784,87223.0,87207.0,0.05744]
[1767046166147,0.17375053,87218.0,87205.0,0.05744]
[1767046166457,0.17375053,87215.0,87205.0,0.05744]
[1767046166659,0.17375053,87215.0,87198.0,0.09756]
[1767046166660,0.0114797,87214.0,87198.0,0.09756]
[1767046166950,0.0114797,87214.0,87196.0,0.0114818]
[1767046166951,0.17375053,87210.0,87199.0,0.155]
[1767046167159,0.00011496,87209.0,87199.0,0.155]
[1767046170450,0.00011496,87209.0,87199.0,0.128]
[1767046173253,0.00011496,87209.0,87188.0,0.00229391]
[1767046173458,0.00011496,87209.0,87192.0,0.0114823]
[1767046174366,0.00011496,87209.0,87194.0,0.0114821]
[1767046176454,0.17375053,87204.0,87188.0,0.00229391]
[1767046176659,0.17375053,87198.0,87166.0,0.05748]
[1767046176856,0.15508,87197.0,87178.0,0.0114842]
[1767046178259,0.17375053,87190.0,87174.0,0.05748]
[1767046178464,0.00012125,87189.0,87174.0,0.05748]
[1767046178763,0.00012125,87189.0,87170.0,0.17375053]
[1767046178961,0.00012125,87189.0,87163.0,0.0976]
[1767046178962,0.0119164,87189.0,87171.0,0.0114852]
[1767046179159,0.01208842,87189.0,87171.0,0.0114852]
[1767046179360,0.01208842,87189.0,87170.0,0.18523583]
[1767046179660,0.01208842,87189.0,87170.0,0.0114853]
[1767046180360,0.01208842,87189.0,87178.0,0.0114843]
[1767046180564,0.15508,87197.0,87179.0,0.17375053]
[1767046180859,0.15508,87197.0,87180.0,0.17375053]
[1767046181057,0.0114827,87191.0,87174.0,0.05748]
[1767046181453,0.17385957,87190.0,87174.0,0.05765202]
[1767046181860,0.00010904,87190.0,87174.0,0.05765202]
[1767046182258,0.00010904,87190.0,87174.0,0.06913672]
[1767046182960,0.00010904,87190.0,87174.0,0.05765202]
[1767046183156,0.00017202,87191.0,87174.0,0.05765202]
[1767046183358,0.16673188,87197.0,87174.0,0.05765202]
[1767046183669,0.17375053,87190.0,87174.0,0.05765202]
[1767046183862,0.17375053,87190.0,87175.0,0.0114847]
[1767046184258,0.17375053,87190.0,87177.0,0.0114843]
[1767046185966,0.17375053,87184.0,87169.0,0.0114854]
[1767046186171,0.17375053,87180.0,87167.0,0.05748]
[1767046186372,0.0114834,87185.0,87167.0,0.05748]
[1767046186768,0.011483,87188.0,87167.0,0.05748]
[1767046187079,0.011483,87188.0,87169.0,0.00017202]
[1767046187288,0.0114833,87185.0,87169.0,0.00017202]
[1767046187573,0.17375053,87180.0,87169.0,0.00017202]
[1767046187770,0.0114833,87185.0,87169.0,0.00017202]
[1767046188578,0.0114837,87183.0,87169.0,0.00017202]
[1767046188776,0.17375053,87180.0,87169.0,0.00017202]
[1767046189376,0.17375053,87180.0,87169.0,2.02e-06]
[1767046190888,0.0114842,87179.0,87169.0,2.02e-06]
[1767046192769,0.17375053,87180.0,87169.0,2.02e-06]
[1767046192968,0.18523463,87180.0,87169.0,2.02e-06]
[1767046193583,0.0114846,87176.0,87169.0,2.02e-06]
[1767046193879,0.05748,87175.0,87169.0,2.02e-06]
[1767046194469,0.09764,87174.0,87137.0,0.09764]
[1767046194670,0.0114856,87169.0,87148.0,0.0114881]
[1767046194869,0.05752,87168.0,87148.0,0.0114881]
[1767046195471,0.00017202,87167.0,87140.0,0.17375053]
[1767046195672,0.00017202,87167.0,87143.0,0.02853991]
[1767046196578,0.09420016,87167.0,87147.0,0.0114883]
[1767046196781,0.09420016,87167.0,87147.0,0.04002821]
[1767046196782,0.00017202,87167.0,87147.0,0.04002821]
[1767046197185,0.00017202,87167.0,87147.0,0.02853991]
[1767046197481,0.17375053,87160.0,87147.0,0.02853991]
[1767046197682,0.23127053,87160.0,87147.0,0.02853991]
[1767046197883,0.23127053,87160.0,87147.0,0.04002821]
[1767046198485,0.23127053,87160.0,87147.0,0.02853991]
[1767046200178,0.17375053,87160.0,87147.0,0.02853991]
[1767046200381,0.00017202,87167.0,87158.0,0.0114869]
[1767046200584,0.00017202,87167.0,87154.0,0.0114873]
[1767046200585,0.05752,87167.0,87154.0,0.0114873]
[1767046200784,0.05752,87167.0,87156.0,0.0114871]
[1767046200979,0.05752,87167.0,87148.0,0.05752]
[1767046200980,0.05752,87167.0,87158.0,0.0114868]
[1767046201683,0.00017202,87171.0,87158.0,0.02853991]
[1767046201985,0.17375053,87210.0,87162.0,0.02853991]
[1767046201986,0.17375053,87180.0,87162.0,0.02853991]
[1767046202186,0.06413968,87179.0,87165.0,0.0114859]
[1767046202382,0.0114832,87186.0,87170.0,0.0114852]
[1767046202689,0.17375053,87180.0,87160.0,0.17375053]
[1767046202878,0.00017202,87179.0,87161.0,0.00017202]
[1767046203078,0.00017202,87179.0,87169.0,0.0114854]
[1767046203278,0.00017202,87179.0,87171.0,0.0114851]
[1767046203685,2e-08,87179.0,87174.0,0.0114848]
[1767046203893,2e-08,87179.0,87172.0,0.011485]
[1767046206693,2e-08,87179.0,87171.0,0.0114851]
[1767046207593,0.0114846,87176.0,87168.0,0.01902511]
[1767046207798,0.011485,87173.0,87161.0,0.00017202]
[1767046208000,0.0690046,87176.0,87161.0,0.00017202]
[1767046209292,0.0114849,87174.0,87161.0,0.00017202]
[1767046209795,0.05752,87176.0,87158.0,0.04417882]
[1767046210301,0.0114847,87175.0,87158.0,0.04417882]
[1767046210692,0.0114847,87175.0,87158.0,0.04435084]
[1767046211199,0.05752,87176.0,87158.0,0.04435084]
[1767046212300,0.0114847,87175.0,87158.0,0.04435084]
[1767046212694,0.0114847,87175.0,87158.0,0.03286404]
[1767046214102,0.05752,87176.0,87158.0,0.03286404]
[1767046214294,0.05752,87176.0,87159.0,0.0114867]
[1767046215698,0.0690046,87176.0,87159.0,0.0114867]
[1767046216701,0.0690046,87176.0,87158.0,0.02735074]
[1767046217295,0.0690046,87176.0,87159.0,0.0114867]
[1767046217798,0.0690046,87176.0,87161.0,0.0114865]
[1767046217995,0.0690046,87176.0,87158.0,0.03883754]
[1767046218905,0.0690046,87176.0,87160.0,0.0114866]
[1767046219310,0.06174734,87188.0,87158.0,0.02735074]
[1767046219604,0.01165188,87197.0,87185.0,0.0114833]
[1767046219798,0.06174734,87200.0,87179.0,0.15516]
[1767046219997,0.05752,87201.0,87190.0,0.0114826]
[1767046220204,0.05756,87200.0,87188.0,0.0114829]
[1767046220405,0.05756,87200.0,87185.0,0.01165532]
[1767046220611,0.05751,87200.0,87185.0,0.01165532]
[1767046221903,0.06940966,87200.0,87185.0,0.01165532]
[1767046222698,0.06940966,87200.0,87187.0,0.011483]
[1767046223311,0.06940966,87200.0,87187.0,0.011433]
[1767046223810,0.06940966,87200.0,87179.0,0.15376502]
[1767046224513,0.06940966,87200.0,87187.0,0.011483]
[1767046225111,0.01189966,87200.0,87187.0,0.011483]
[1767046225306,0.05752,87201.0,87187.0,0.011483]
[1767046225502,0.01146069,87201.0,87187.0,0.011483]
[1767046225707,0.05752,87201.0,87187.0,0.011483]
[1767046226210,0.06912029,87201.0,87189.0,0.0114828]
[1767046226404,0.01160029,87201.0,87189.0,0.0114828]
[1767046226610,0.0114812,87202.0,87186.0,0.0114832]
[1767046226809,0.00017202,87203.0,87188.0,0.0114829]
[1767046226999,0.01200574,87203.0,87185.0,0.00017202]
[1767046227203,0.00017202,87203.0,87189.0,0.05752]
[1767046228107,0.01168902,87203.0,87189.0,0.05752]
[1767046228308,0.01165312,87203.0,87189.0,0.05752]
[1767046228611,0.01165302,87203.0,87189.0,0.05752]
[1767046228807,0.00017202,87203.0,87189.0,0.05752]
[1767046230314,0.01214111,87203.0,87190.0,0.0114826]
[1767046230908,0.01214111,87203.0,87189.0,0.05352]
[1767046231114,0.01214111,87203.0,87190.0,0.0114827]
[1767046232616,0.01214111,87203.0,87189.0,0.05352]
[1767046233808,0.01214111,87203.0,87145.0,0.30423845]
[1767046233809,0.01214111,87203.0,87169.0,0.0896]
[1767046234011,0.0114828,87190.0,87173.0,0.0114849]
[1767046234208,0.0114828,87190.0,87174.0,0.09764]
[1767046234403,0.0114833,87186.0,87174.0,0.09764]
[1767046234604,0.0114829,87189.0,87174.0,0.09764]
[1767046235512,0.0114829,87189.0,87173.0,0.0114849]
[1767046235720,0.09764,87188.0,87163.0,0.05752]
[1767046235914,0.0114844,87177.0,87163.0,0.15516]
[1767046236714,0.0114845,87177.0,87163.0,0.15516]
[1767046236907,0.00017202,87184.0,87163.0,0.15516]
[1767046237624,0.0114856,87168.0,87157.0,0.09764]
[1767046237822,0.0114852,87171.0,87157.0,0.05752]
[1767046239723,0.00017202,87184.0,87157.0,0.05752]
[1767046239930,0.0114853,87171.0,87157.0,0.05752]
[1767046240723,0.00017202,87184.0,87157.0,0.05752]
[1767046240724,0.0114855,87169.0,87157.0,0.05752]
[1767046243026,0.0114855,87169.0,87157.0,0.03052]
[1767046246419,0.0114838,87182.0,87157.0,0.03052]
[1767046246625,0.011485,87173.0,87157.0,0.03052]
[1767046248331,0.011485,87173.0,87157.0,0.042007]
[1767046248828,0.00017202,87184.0,87157.0,0.03052]
[1767046249029,0.00017202,87184.0,87157.0,0.042007]
[1767046249328,0.0114849,87174.0,87157.0,0.042007]
[1767046249927,0.17406309,87170.0,87136.0,0.04240133]
[1767046250131,0.0114868,87159.0,87144.0,0.0114887]
[1767046250333,0.0114868,87159.0,87145.0,0.05756]
[1767046251527,0.0114871,87157.0,87145.0,0.05756]
[1767046251926,0.0114867,87160.0,87145.0,0.05756]
[1767046252130,0.011487,87158.0,87145.0,0.05756]
[1767046252722,0.0114866,87161.0,87145.0,0.05756]
[1767046253036,0.0114866,87161.0,87145.0,0.0690486]
[1767046253429,0.0114868,87159.0,87145.0,0.0690486]
[1767046254137,0.0114877,87153.0,87135.0,0.0114898]
[1767046254738,0.0114879,87151.0,87135.0,0.0114898]
[1767046255136,0.0114879,87151.0,87132.0,0.0690503]
[1767046255727,0.09764,87156.0,87132.0,0.0690503]
[1767046256535,0.0114881,87150.0,87132.0,0.0114903]
[1767046256933,0.0114881,87150.0,87134.0,0.01163751]
[1767046257440,0.0114876,87153.0,87134.0,0.01163751]
[1767046258245,0.09764,87156.0,87134.0,0.00014751]
[1767046258446,0.0114878,87152.0,87135.0,0.0114899]
[1767046259341,0.00017202,87162.0,87137.0,0.0114896]
[1767046259642,0.00017202,87162.0,87137.0,0.0690496]
[1767046259643,0.05756,87160.0,87137.0,0.0690496]
[1767046259844,0.011487,87158.0,87140.0,0.0114893]
[1767046260438,0.011487,87158.0,87142.0,0.0114889]
[1767046261436,0.011487,87158.0,87137.0,0.0490489]
[1767046261634,0.00017202,87162.0,87137.0,0.0490489]
[1767046261842,0.00017202,87162.0,87138.0,0.09764]
[1767046261843,0.0114867,87160.0,87138.0,0.09764]
[1767046262042,0.0114867,87160.0,87144.0,0.0114887]
[1767046262450,0.00017202,87162.0,87144.0,0.0114887]
[1767046264044,0.00017202,87162.0,87146.0,0.0114884]
[1767046264540,0.00017202,87162.0,87145.0,0.0114886]
[1767046265142,0.00017202,87162.0,87147.0,0.0114883]
[1767046266547,0.17415079,87160.0,87147.0,0.0114883]
[1767046266747,0.00017202,87162.0,87147.0,0.0114883]
[1767046266947,0.17415079,87160.0,87147.0,0.0114883]
[1767046267141,0.00017202,87162.0,87147.0,0.0114883]
[1767046267736,0.17415079,87160.0,87147.0,0.0114883]
[1767046268349,0.17415079,87160.0,87140.0,0.17415079]
[1767046268555,0.00017202,87162.0,87140.0,0.17415079]
[1767046268749,0.17415079,87160.0,87140.0,0.17415079]
[1767046269248,0.17415079,87160.0,87146.0,0.0114885]
[1767046270853,0.00017202,87162.0,87140.0,0.17415079]
[1767046270854,0.00017202,87162.0,87147.0,0.0114882]
[1767046271055,0.01165852,87162.0,87140.0,0.17415079]
[1767046272345,0.01165852,87162.0,87146.0,0.0114884]
[1767046272545,0.01165852,87162.0,87146.0,0.0690484]
[1767046273654,0.00017202,87162.0,87148.0,0.0114882]
[1767046273957,0.05756,87171.0,87151.0,0.0114878]
[1767046274454,0.05756,87172.0,87151.0,0.0114878]
[1767046274655,0.0114856,87169.0,87153.0,0.0114875]
[1767046275057,0.0114858,87167.0,87154.0,0.05756]
[1767046275556,0.0114858,87167.0,87154.0,0.02956]
[1767046276461,0.18580831,87170.0,87154.0,0.02956]
[1767046276652,0.0114856,87168.0,87154.0,0.02956]
[1767046277351,0.17432291,87170.0,87154.0,0.02956]
[1767046277352,0.00017212,87170.0,87154.0,0.02956]
[1767046277553,0.17432291,87170.0,87154.0,0.0410473]
[1767046278462,0.00017212,87170.0,87154.0,0.0410473]
[1767046278662,0.17432291,87170.0,87154.0,0.0410473]
[1767046278850,0.0114857,87167.0,87154.0,0.0410473]
[1767046280062,0.01165752,87170.0,87154.0,0.0410473]
[1767046281063,0.01165752,87170.0,87156.0,0.0114871]
[1767046282267,0.18580831,87170.0,87156.0,0.0114871]
[1767046282759,0.01165752,87170.0,87154.0,0.0230471]
[1767046283364,0.01165752,87170.0,87156.0,0.0114871]
[1767046287164,0.0114858,87167.0,87154.0,0.0230471]
[1767046288969,0.18580831,87170.0,87155.0,0.0114873]
[1767046289266,0.0114856,87168.0,87155.0,0.0114873]
[1767046289867,0.0114856,87168.0,87154.0,0.0030471]
[1767046290167,0.0114859,87166.0,87154.0,0.0030471]
[1767046293065,0.0114858,87167.0,87154.0,0.0030471]
[1767046296966,0.0114858,87167.0,87155.0,0.05756]
[1767046299667,0.011486,87165.0,87155.0,0.05756]
[1767046301062,0.0114857,87168.0,87155.0,0.05756]
[1767046301468,0.00017212,87170.0,87158.0,0.17415079]
[1767046301772,0.00017212,87170.0,87158.0,0.09764]
[1767046303169,0.0114857,87168.0,87158.0,0.09764]
[1767046304272,0.0114857,87168.0,87158.0,0.05264]
[1767046305365,0.0114855,87169.0,87158.0,0.05264]
[1767046311380,0.01165752,87170.0,87158.0,0.05264]
[1767046311878,0.01165752,87170.0,87158.0,0.01564]
[1767046315384,0.0114856,87168.0,87158.0,0.01564]
[1767046316681,0.0114855,87169.0,87158.0,0.01564]
[1767046318982,0.0114855,87169.0,87158.0,0.09764]
[1767046323789,0.00017212,87170.0,87158.0,0.09764]
[1767046324487,0.01165742,87170.0,87158.0,0.09764]
[1767046324684,0.01165742,87170.0,87158.0,0.09678575]
[1767046325582,0.00017212,87170.0,87158.0,0.09678575]
[1767046325784,0.05752,87185.0,87164.0,0.0114861]
[1767046325984,0.05752,87185.0,87165.0,0.02852]
[1767046325985,0.17415079,87180.0,87165.0,0.02852]
[1767046327387,0.0114847,87175.0,87165.0,0.02852]
[1767046331593,0.01165612,87181.0,87165.0,0.02852]
[1767046331795,0.0114852,87172.0,87165.0,0.02852]
[1767046331986,0.0114848,87175.0,87165.0,0.02852]
[1767046332291,0.011485,87173.0,87165.0,0.02852]
[1767046333186,0.011485,87173.0,87165.0,0.00652]
[1767046340203,0.011485,87173.0,87165.0,0.05752]
[1767046342195,0.00017212,87181.0,87165.0,0.05752]
[1767046343704,0.0114844,87177.0,87165.0,0.05752]
[1767046345217,0.0114847,87175.0,87165.0,0.05752]
[1767046347105,0.00017212,87181.0,87165.0,0.05752]
[1767046347409,0.00017212,87181.0,87165.0,0.03152]
[1767046347602,0.0114844,87178.0,87165.0,0.03152]
[1767046348405,0.0114846,87176.0,87165.0,0.03152]
[1767046348905,0.00017212,87181.0,87165.0,0.03152]
[1767046349399,0.0114847,87175.0,87165.0,0.03152]
[1767046350608,0.00017212,87181.0,87165.0,0.03152]
[1767046352213,0.0114846,87176.0,87165.0,0.03152]
[1767046352410,0.00017212,87181.0,87165.0,0.03152]
[1767046352612,0.0114847,87176.0,87165.0,0.03152]
[1767046354011,0.0114847,87176.0,87166.0,0.09764]
[1767046354306,0.0114847,87176.0,87166.0,0.07164]
[1767046356506,0.0114848,87174.0,87166.0,0.07164]
[1767046356706,0.0114845,87177.0,87166.0,0.07164]
[1767046357306,0.0114847,87175.0,87166.0,0.07164]
[1767046358012,0.00017212,87181.0,87166.0,0.07164]
[1767046359013,0.0114847,87175.0,87166.0,0.07164]
[1767046359716,0.011485,87173.0,87166.0,0.07164]
[1767046360916,0.0114846,87176.0,87166.0,0.07164]
[1767046361213,0.0114848,87174.0,87166.0,0.07164]
[1767046361413,0.0114848,87174.0,87166.0,0.05364]
[1767046363618,0.06188845,87181.0,87166.0,0.05364]
[1767046363808,0.00017212,87181.0,87166.0,0.05364]
[1767046364001,0.06188845,87181.0,87166.0,0.05364]
[1767046364205,0.0114848,87175.0,87166.0,0.05364]
[1767046364518,0.011485,87173.0,87166.0,0.05364]
[1767046368320,0.0114846,87176.0,87166.0,0.05364]
[1767046368618,0.0114846,87176.0,87166.0,0.03264]
[1767046368828,0.0114848,87174.0,87166.0,0.03264]
[1767046370723,0.06188845,87181.0,87166.0,0.03264]
[1767046373134,0.06171633,87179.0,87166.0,0.03264]
[1767046373421,0.0114847,87175.0,87166.0,0.03264]
[1767046374622,0.011485,87173.0,87166.0,0.03264]
[1767046375626,0.011485,87173.0,87166.0,0.00364]
[1767046377429,0.06171633,87179.0,87166.0,0.00364]
[1767046377430,0.0114845,87177.0,87166.0,0.00364]
[1767046377624,0.0114847,87175.0,87166.0,0.00364]
[1767046378826,0.06171633,87179.0,87166.0,0.00364]
[1767046379224,0.0114851,87172.0,87166.0,0.00364]
[1767046379527,0.0114847,87175.0,87166.0,0.00364]
[1767046380327,0.06171633,87179.0,87166.0,0.00364]
[1767046381022,0.0114851,87172.0,87166.0,0.00364]
[1767046381226,0.0114847,87175.0,87166.0,0.00364]
[1767046382431,0.0114844,87178.0,87166.0,0.00364]
[1767046382727,0.011485,87173.0,87165.0,0.1168]
[1767046383633,0.0114846,87176.0,87165.0,0.1168]
[1767046385428,0.00017212,87181.0,87165.0,0.1168]
[1767046385624,0.0114843,87178.0,87165.0,0.1168]
[1767046387023,0.0114842,87179.0,87165.0,0.1168]
[1767046387225,0.00017212,87181.0,87165.0,0.1168]
[1767046387530,0.0114843,87178.0,87165.0,0.1168]
[1767046388431,0.00017212,87181.0,87165.0,0.1168]
[1767046389429,0.0114844,87178.0,87165.0,0.1168]
[1767046389727,0.0114844,87178.0,87165.0,0.09764]
[1767046389933,0.0114844,87178.0,87166.0,0.05752]
[1767046391731,0.17407842,87180.0,87166.0,0.05752]
[1767046391923,0.0114844,87177.0,87166.0,0.05752]
[1767046393436,0.0114848,87175.0,87166.0,0.05752]
[1767046395221,0.17407842,87180.0,87166.0,0.05752]
[1767046396132,0.06188845,87181.0,87166.0,0.05752]
[1767046396335,0.0114842,87179.0,87166.0,0.05752]
[1767046396632,0.0114845,87177.0,87166.0,0.05752]
[1767046396833,0.0114841,87180.0,87166.0,0.03252]
[1767046397028,0.0114843,87178.0,87166.0,0.03252]
[1767046397228,0.0114847,87175.0,87166.0,0.03252]
[1767046398934,0.17407842,87180.0,87166.0,0.03252]
[1767046399533,0.0114842,87179.0,87166.0,0.03252]
[1767046400133,0.09907842,87180.0,87166.0,0.03252]
[1767046400338,0.07407842,87180.0,87166.0,0.03252]
[1767046400930,0.0114842,87179.0,87166.0,0.03252]
[1767046402437,2.12e-06,87181.0,87170.0,0.0114853]
[1767046402632,2.12e-06,87181.0,87166.0,0.03252]
[1767046402633,0.17407842,87180.0,87167.0,0.0114857]
[1767046403436,0.17407842,87180.0,87169.0,0.0114854]
[1767046403942,0.17407842,87180.0,87166.0,0.03252]
[1767046404131,2.12e-06,87181.0,87171.0,0.0114851]
[1767046404449,2.12e-06,87181.0,87172.0,0.05752]
[1767046405641,2.12e-06,87181.0,87173.0,0.0114849]
[1767046409150,2.12e-06,87181.0,87172.0,0.05752]
[1767046410448,2.12e-06,87181.0,87172.0,0.069005]
[1767046411248,2.12e-06,87181.0,87172.0,0.032005]
[1767046413160,2.12e-06,87181.0,87174.0,0.0114847]
[1767046413461,2.12e-06,87181.0,87175.0,0.09764]
[1767046418259,2.12e-06,87181.0,87175.0,0.08564]
[1767046425568,2.12e-06,87181.0,87175.0,0.07364]
[1767046433479,2.12e-06,87181.0,87175.0,0.06064]
[1767046440376,2.12e-06,87181.0,87175.0,0.04864]
[1767046447585,2.12e-06,87181.0,87175.0,0.03364]
[1767046454688,2.12e-06,87181.0,87175.0,0.02464]
[1767046461796,2.12e-06,87181.0,87175.0,0.00764]
[1767046468492,2.12e-06,87181.0,87177.0,0.0114844]
[1767046468910,2.12e-06,87181.0,87177.0,0.0084844]
[1767046469205,2.12e-06,87181.0,87175.0,0.00764]
[1767046469206,2.12e-06,87181.0,87175.0,0.0191246]
[1767046469406,2.12e-06,87181.0,87175.0,0.00764]
[1767046473312,2.12e-06,87181.0,87175.0,0.0191247]
[1767046473709,2.12e-06,87181.0,87175.0,0.00764]
[1767046475213,2.12e-06,87181.0,87175.0,0.0191246]
[1767046475914,2.12e-06,87181.0,87175.0,0.0051244]
[1767046477016,2.12e-06,87181.0,87175.0,0.016609]
[1767046477720,2.12e-06,87181.0,87176.0,0.0114845]
[1767046478016,2.12e-06,87181.0,87165.0,0.00017212]
[1767046478314,2.12e-06,87181.0,87166.0,0.0114858]
[1767046479919,2.12e-06,87181.0,87168.0,0.0114855]
[1767046481620,2.12e-06,87181.0,87170.0,0.0114853]
[1767046481917,2.12e-06,87181.0,87171.0,0.15512]
[1767046482819,2.12e-06,87181.0,87172.0,0.0114851]
[1767046483019,2.12e-06,87181.0,87171.0,0.13912]
[1767046488014,2.12e-06,87181.0,87174.0,0.0114847]
[1767046489323,2.12e-06,87181.0,87179.0,0.0114841]
[1767046489509,2.12e-06,87181.0,87180.0,0.05748]
[1767046495129,0.01196909,87203.0,87180.0,0.05748]
[1767046495316,0.09764,87204.0,87181.0,0.09764]
[1767046495829,0.08230026,87223.0,87181.0,0.09764]
[1767046495830,0.0114805,87207.0,87192.0,0.0114824]
[1767046496128,0.00017202,87208.0,87191.0,0.05765202]
[1767046496328,0.00017202,87208.0,87193.0,0.0114822]
[1767046496727,0.01288355,87208.0,87195.0,0.011482]
[1767046498534,0.01288355,87208.0,87191.0,0.05013402]
[1767046499227,0.01288355,87208.0,87195.0,0.011482]
[1767046499420,0.01288355,87208.0,87192.0,0.0114823]
[1767046499927,0.01288355,87208.0,87194.0,0.0114821]
[1767046500231,0.01288355,87208.0,87196.0,0.0114819]
[1767046500527,0.01288355,87208.0,87197.0,0.0114817]
[1767046500830,0.00017202,87208.0,87191.0,0.14777402]
[1767046501029,0.0114792,87217.0,87202.0,0.0114811]
[1767046501230,0.02409046,87217.0,87202.0,0.0114811]
[1767046501528,0.0114792,87217.0,87199.0,0.0114815]
[1767046501931,0.0114792,87217.0,87191.0,0.14777402]
[1767046501932,0.01275765,87217.0,87195.0,0.0114819]
[1767046502124,0.0114797,87213.0,87195.0,0.0114819]
[1767046502325,0.0114797,87213.0,87197.0,0.0114817]
[1767046502923,0.0114793,87216.0,87199.0,0.0114814]
[1767046503124,0.01165122,87217.0,87200.0,0.0114813]
[1767046503329,0.01165122,87217.0,87202.0,0.011481]
[1767046503330,0.01247559,87217.0,87202.0,0.011481]
[1767046503831,0.02395479,87217.0,87199.0,0.0114815]
[1767046505527,0.01247559,87217.0,87191.0,0.14525512]
[1767046506033,0.0114793,87216.0,87191.0,0.14525512]
[1767046506632,0.0114793,87216.0,87200.0,0.0114813]
[1767046508334,0.0114793,87216.0,87191.0,0.14525512]
[1767046508827,0.01247559,87217.0,87191.0,0.14525512]
[1767046508828,0.01247559,87217.0,87192.0,0.0114824]
[1767046509029,0.01247559,87217.0,87206.0,0.0114805]
[1767046511438,0.01247559,87217.0,87208.0,0.0114803]
[1767046512836,0.01247559,87217.0,87203.0,0.1535603]
[1767046515240,0.01247559,87217.0,87208.0,0.0114803]
[1767046519737,0.01247559,87217.0,87203.0,0.1340406]
[1767046519946,0.05748,87235.0,87217.0,0.0114791]
[1767046520246,0.17388372,87230.0,87221.0,0.0114786]
[1767046520934,0.01238067,87235.0,87217.0,0.05748]
[1767046520935,0.00017202,87234.0,87223.0,0.0114783]
[1767046521134,0.00017202,87234.0,87220.0,0.17388372]
[1767046521646,0.00017202,87234.0,87227.0,0.0114778]
[1767046522243,0.00017202,87234.0,87224.0,0.0114781]
[1767046523242,0.00017202,87234.0,87226.0,0.0114779]
[1767046524443,0.00017202,87234.0,87226.0,0.0689579]
[1767046525939,0.00017202,87234.0,87226.0,0.05748]
[1767046526939,0.00017202,87234.0,87226.0,0.04548]
[1767046527143,0.00017202,87234.0,87224.0,0.15508]
[1767046527333,0.0114779,87227.0,87222.0,0.05748]
[1767046528346,0.0114777,87228.0,87222.0,0.05748]
[1767046528841,0.00017202,87234.0,87222.0,0.05748]
[1767046529044,0.0114773,87232.0,87222.0,0.05748]
[1767046529645,0.0114772,87232.0,87222.0,0.05748]
[1767046530451,0.0114775,87230.0,87222.0,0.05748]
[1767046533048,0.0114773,87231.0,87222.0,0.05748]
[1767046534040,0.0114773,87231.0,87222.0,0.02048]
[1767046534942,0.00017202,87234.0,87222.0,0.02048]
[1767046535550,0.00017202,87234.0,87223.0,0.0114783]
[1767046536147,0.00017202,87234.0,87222.0,0.02048]
[1767046536339,0.00017202,87234.0,87224.0,0.0114782]
[1767046537751,0.0114765,87238.0,87222.0,0.02048]
[1767046537952,0.0114767,87236.0,87222.0,0.02048]
[1767046538349,0.0114776,87229.0,87222.0,0.02048]
[1767046541154,0.0114776,87229.0,87222.0,0.00748]
[1767046541957,0.17388372,87232.0,87219.0,0.0976]
[1767046542748,0.17388372,87232.0,87217.0,2e-08]
[1767046543150,0.0114778,87228.0,87217.0,2e-08]
[1767046543854,0.0114774,87231.0,87217.0,2e-08]
[1767046544056,0.0114774,87231.0,87216.0,0.0114792]
[1767046545556,0.17388372,87226.0,87200.0,0.12051364]
[1767046545762,0.09756,87232.0,87194.0,0.05748]
[1767046545763,0.17388372,87210.0,87194.0,0.05748]
[1767046546152,0.17388372,87210.0,87197.0,0.0114817]
[1767046546352,0.18536382,87210.0,87194.0,0.0689621]
[1767046546667,0.17388372,87204.0,87194.0,0.05748]
[1767046547462,0.18536462,87204.0,87194.0,0.05748]
[1767046547661,0.0114805,87207.0,87194.0,0.05748]
[1767046547862,0.17388372,87210.0,87194.0,0.05748]
[1767046548254,0.05748,87209.0,87194.0,0.03848]
[1767046548456,0.0114809,87204.0,87194.0,0.03848]
[1767046548656,0.0114805,87207.0,87194.0,0.03848]
[1767046552357,0.05748,87209.0,87194.0,0.03848]
[1767046552966,0.0114804,87208.0,87194.0,0.03848]
[1767046554068,0.05748,87209.0,87194.0,0.0499621]
[1767046554268,0.0689603,87209.0,87194.0,0.0499621]
[1767046554862,0.0689603,87209.0,87194.0,0.03848]
[1767046555362,0.0689603,87209.0,87194.0,0.01148]
[1767046555562,0.0689603,87209.0,87194.0,0.0229621]
[1767046558177,0.05748,87209.0,87196.0,0.0114818]
[1767046560777,0.05748,87209.0,87198.0,0.0114816]
[1767046561280,0.05748,87209.0,87194.0,0.01148]
[1767046562595,0.17388372,87210.0,87200.0,0.0114813]
[1767046562792,0.05748,87210.0,87200.0,0.0114813]
[1767046563289,0.05748,87210.0,87194.0,0.00648]
[1767046563494,0.05748,87210.0,87200.0,0.0114814]
[1767046563889,0.23136372,87210.0,87200.0,0.0114814]
[1767046564088,0.17388372,87210.0,87200.0,0.0114814]
[1767046564291,0.23136372,87210.0,87200.0,0.0114814]
[1767046566291,0.05748,87209.0,87200.0,0.0114814]
[1767046566993,0.17388372,87210.0,87200.0,0.0114814]
[1767046567298,0.05748,87209.0,87200.0,0.0114814]
[1767046568790,0.05748,87225.0,87194.0,0.00648]
[1767046568993,0.0114786,87222.0,87205.0,0.0114807]
[1767046569296,0.17388372,87220.0,87202.0,0.0114811]
[1767046569601,0.18536252,87220.0,87194.0,0.0049611]
[1767046569897,0.00017202,87216.0,87194.0,0.0049611]
[1767046570088,0.00017202,87216.0,87202.0,0.0114811]
[1767046572602,0.00017202,87216.0,87206.0,0.0114805]
[1767046576196,0.00017202,87216.0,87202.0,0.0114811]
[1767046576596,0.00017202,87216.0,87195.0,0.05748]
[1767046576799,0.00017202,87216.0,87204.0,0.0114808]
[1767046577597,0.00017202,87216.0,87201.0,0.0114812]
[1767046577798,0.00017202,87216.0,87203.0,0.0114809]
[1767046578801,0.00017202,87216.0,87205.0,0.0114806]
[1767046582815,0.00017202,87216.0,87204.0,0.0114808]
[1767046583713,0.00017202,87216.0,87195.0,0.0399608]
[1767046584213,0.00017202,87216.0,87204.0,0.0114808]
[1767046584512,0.00017202,87216.0,87206.0,0.0114805]
[1767046585115,0.00017202,87216.0,87195.0,0.0399608]
[1767046586406,0.00017202,87216.0,87205.0,0.0114807]
[1767046586614,0.00017202,87216.0,87207.0,0.0114804]
[1767046586807,0.00017202,87216.0,87195.0,0.0399608]
[1767046587216,0.00017202,87216.0,87206.0,0.0114805]
[1767046587813,0.00017202,87216.0,87195.0,0.0399608]
[1767046588705,0.00017202,87216.0,87206.0,0.0114805]
[1767046588905,0.00017202,87216.0,87205.0,0.0114806]